bitfinex/quotes_BTCUSD_20240611
["timestamp","ask_amount","ask_price","bid_price","bid_amount"]
[1718086738184,0.00086,67876.0,67875.0,1.04260428]
[1718086738399,0.00086,67876.0,67875.0,0.73700963]
[1718086739039,0.00086,67876.0,67875.0,0.73300963]
[1718086739277,0.00086,67876.0,67875.0,0.72900963]
[1718086739500,0.00086,67876.0,67875.0,0.73500963]
[1718086739963,0.00086,67876.0,67875.0,0.73200963]
[1718086740831,0.00086,67876.0,67875.0,0.73500963]
[1718086743029,0.00086,67876.0,67875.0,0.58218772]
[1718086743258,0.00086,67876.0,67875.0,0.73498344]
[1718086745513,0.00086,67876.0,67875.0,0.88231244]
[1718086746422,0.00086,67876.0,67875.0,0.79053237]
[1718086746559,0.00086,67876.0,67875.0,0.70543237]
[1718086746765,0.00086,67876.0,67875.0,0.79053237]
[1718086747117,0.00086,67876.0,67875.0,1.32932135]
[1718086747328,0.00086,67876.0,67875.0,0.66670142]
[1718086747463,0.00086,67876.0,67875.0,0.44621244]
[1718086748053,0.00086,67876.0,67875.0,0.44321244]
[1718086748884,0.00086,67876.0,67875.0,0.44621244]
[1718086749311,0.00086,67876.0,67875.0,0.44321244]
[1718086750185,0.00086,67876.0,67875.0,0.44621244]
[1718086750402,0.08186,67876.0,67875.0,0.36111244]
[1718086750622,0.08186,67876.0,67875.0,0.29888344]
[1718086750863,0.08186,67876.0,67875.0,0.21378344]
[1718086751091,0.00086,67876.0,67875.0,0.21378344]
[1718086751311,0.08186,67876.0,67875.0,0.003]
[1718086751806,0.08186,67876.0,67875.0,0.006]
[1718086752230,0.08186,67876.0,67875.0,0.003]
[1718086752438,0.08186,67876.0,67875.0,0.006]
[1718086752656,0.08186,67876.0,67875.0,0.01856771]
[1718086753081,0.08186,67876.0,67875.0,0.01256771]
[1718086753285,0.08186,67876.0,67875.0,0.01556771]
[1718086753919,0.08186,67876.0,67875.0,0.01856771]
[1718086754350,0.08186,67876.0,67875.0,0.01556771]
[1718086754548,0.08186,67876.0,67875.0,0.10366771]
[1718086755237,0.00086,67876.0,67875.0,0.10366771]
[1718086755933,0.00086,67876.0,67875.0,0.25648497]
[1718086761382,0.00086,67876.0,67875.0,0.25647468]
[1718086763209,0.00086,67876.0,67875.0,0.17137468]
[1718086764232,0.00086,67876.0,67875.0,0.17232068]
[1718086765204,0.00086,67876.0,67875.0,0.01951371]
[1718086766446,0.00086,67876.0,67875.0,0.006946]
[1718086768439,0.02086,67876.0,67875.0,0.006946]
[1718086769681,0.06704012,67876.0,67875.0,0.006946]
[1718086769895,0.00086,67876.0,67875.0,0.006946]
[1718086770315,0.04497909,67876.0,67875.0,0.006946]
[1718086770517,0.04497909,67876.0,67875.0,0.01960831]
[1718086772854,0.00086,67876.0,67875.0,0.17242523]
[1718086774081,0.00086,67876.0,67875.0,0.17242337]
[1718086775231,0.00086,67876.0,67875.0,0.01960831]
[1718086775690,0.00086,67876.0,67875.0,0.15976919]
[1718086776488,0.00086,67876.0,67875.0,0.006946]
[1718086776699,0.00086,67876.0,67875.0,0.15976486]
[1718086795283,0.04500888,67876.0,67875.0,0.15976486]
[1718086797316,0.04500888,67876.0,67875.0,0.15976384]
[1718086797524,0.04500888,67876.0,67875.0,0.18770794]
[1718086798336,0.04502545,67876.0,67875.0,0.18770794]
[1718086801899,0.06710818,67876.0,67875.0,0.18770794]
[1718086802343,0.00086,67876.0,67875.0,0.18770794]
[1718086802784,0.06711311,67876.0,67875.0,0.18770794]
[1718086803639,0.00086,67876.0,67875.0,0.18770794]
[1718086804455,0.0671172,67876.0,67875.0,0.18770794]
[1718086804608,0.00086,67876.0,67875.0,0.18770794]
[1718086804824,0.10596,67876.0,67875.0,0.18770794]
[1718086805035,0.81240796,67876.0,67875.0,0.15976384]
[1718086805261,0.83449069,67876.0,67875.0,0.15976384]
[1718086805457,0.83449069,67876.0,67875.0,0.006946]
[1718086805458,0.7847167,67876.0,67875.0,0.006946]
[1718086805792,0.80288092,67876.0,67875.0,0.006946]
[1718086806205,0.80288092,67876.0,67875.0,0.003946]
[1718086806629,0.85653489,67876.0,67875.0,0.006946]
[1718086806844,0.85653489,67876.0,67875.0,0.003946]
[1718086807259,0.85653489,67876.0,67875.0,0.005946]
[1718086807260,0.85659224,67876.0,67875.0,0.005946]
[1718086807475,0.85659224,67876.0,67875.0,0.003946]
[1718086807912,0.77849224,67876.0,67875.0,0.001946]
[1718086808131,0.86359224,67876.0,67875.0,0.001946]
[1718086808341,0.73113451,67876.0,67875.0,0.001946]
[1718086812782,0.64603451,67876.0,67875.0,0.001946]
[1718086812985,0.73113451,67876.0,67875.0,0.001946]
[1718086817066,0.73074352,67876.0,67875.0,0.001946]
[1718086817964,0.73074352,67876.0,67875.0,0.01390832]
[1718086818801,0.73074323,67876.0,67875.0,0.01390832]
[1718086820898,0.73074323,67876.0,67875.0,0.001946]
[1718086820899,0.74074323,67876.0,67875.0,0.001946]
[1718086822451,0.82176287,67876.0,67875.0,0.001946]
[1718086824252,0.82176731,67876.0,67875.0,0.001946]
[1718086824979,0.82176681,67876.0,67875.0,0.001946]
[1718086825595,0.82176681,67876.0,67875.0,0.02899832]
[1718086826218,0.90386681,67876.0,67875.0,0.02899832]
[1718086826360,0.90386681,67876.0,67875.0,0.001946]
[1718086826787,0.91386681,67876.0,67875.0,0.001946]
[1718086827443,0.90386656,67876.0,67875.0,0.001946]
[1718086828962,0.91386656,67876.0,67875.0,0.001946]
[1718086829415,0.83176656,67876.0,67875.0,0.001946]
[1718086829641,1.85235482,67876.0,67875.0,0.001946]
[1718086829857,1.85235482,67876.0,67872.0,0.009438]
[1718086829858,0.42,67873.0,67872.0,0.009438]
[1718086830094,0.47734,67870.0,67855.0,0.0813]
[1718086830320,1.21583804,67870.0,67854.0,0.1613]
[1718086830540,1.8274591,67870.0,67854.0,0.1613]
[1718086831221,2.0274591,67870.0,67852.0,0.0761]
[1718086831435,1.115655,67863.0,67852.0,0.236]
[1718086831645,1.74414017,67863.0,67852.0,0.236]
[1718086831857,1.90012307,67863.0,67852.0,0.236]
[1718086832083,1.92312307,67863.0,67852.0,0.236]
[1718086834169,1.92451253,67863.0,67862.0,0.00186]
[1718086834400,2.03851253,67863.0,67862.0,0.00186]
[1718086836195,2.0385337,67863.0,67862.0,0.00186]
[1718086837266,2.3332447,67863.0,67862.0,0.00186]
[1718086837471,2.26229981,67863.0,67862.0,0.00186]
[1718086838058,2.52945307,67863.0,67862.0,0.00186]
[1718086838264,2.80945307,67863.0,67862.0,0.00186]
[1718086838469,0.02,67838.0,67837.0,0.1523]
[1718086838631,0.1051,67838.0,67837.0,0.1523]
[1718086838839,0.25344332,67838.0,67837.0,0.1523]
[1718086839457,0.16834332,67838.0,67837.0,0.1523]
[1718086839659,0.16834332,67838.0,67837.0,0.2376]
[1718086839883,0.16834332,67838.0,67837.0,0.26289701]
[1718086840089,0.25344332,67838.0,67837.0,0.26289701]
[1718086840295,0.40085332,67838.0,67837.0,0.26289701]
[1718086841086,0.40085332,67838.0,67837.0,0.25889701]
[1718086841510,0.40085332,67838.0,67837.0,0.25989701]
[1718086841958,0.31875332,67838.0,67837.0,0.25989701]
[1718086842185,0.40085332,67838.0,67837.0,0.25889701]
[1718086842402,0.31575332,67838.0,67837.0,0.25989701]
[1718086843109,0.31575332,67838.0,67837.0,0.25889701]
[1718086843327,0.31575332,67838.0,67837.0,0.17759701]
[1718086843748,0.31675332,67838.0,67837.0,0.17759701]
[1718086843958,0.31575332,67838.0,67837.0,0.17759701]
[1718086844391,0.31675332,67838.0,67837.0,0.17859701]
[1718086844610,0.31575332,67838.0,67837.0,0.1533]
[1718086844824,0.39575332,67838.0,67837.0,0.001]
[1718086845041,0.167427,67830.0,67829.0,0.2319]
[1718086845253,0.31174693,67830.0,67829.0,0.2319]
[1718086845464,0.31572322,67830.0,67829.0,0.2319]
[1718086845698,0.31572322,67830.0,67829.0,0.1536]
[1718086845920,0.02,67823.0,67821.0,0.1536]
[1718086846137,0.31176193,67823.0,67822.0,0.02542583]
[1718086846350,0.1714154,67822.0,67821.0,0.1536]
[1718086846567,0.167449,67820.0,67819.0,0.01432029]
[1718086846772,0.39686893,67820.0,67819.0,0.09272029]
[1718086847018,0.4008157,67820.0,67819.0,0.01432029]
[1718086847219,0.4008157,67820.0,67818.0,0.009438]
[1718086847220,0.6012,67819.0,67818.0,0.009438]
[1718086847433,0.91201993,67819.0,67818.0,0.009438]
[1718086847904,0.93895438,67819.0,67818.0,0.009438]
[1718086848138,1.03895438,67819.0,67818.0,0.009438]
[1718086848320,1.04895438,67819.0,67818.0,0.009438]
[1718086849599,1.06295438,67819.0,67818.0,0.010438]
[1718086849804,1.05295438,67819.0,67818.0,0.010438]
[1718086850702,1.06695438,67819.0,67818.0,0.010438]
[1718086850909,1.07695438,67819.0,67818.0,0.010438]
[1718086851123,1.16205438,67819.0,67818.0,0.010438]
[1718086851334,1.05295438,67819.0,67818.0,0.009438]
[1718086851545,1.13805438,67819.0,67818.0,0.009438]
[1718086851759,1.21440538,67819.0,67818.0,0.610438]
[1718086851976,1.29950538,67819.0,67818.0,0.610438]
[1718086852402,1.28550538,67819.0,67818.0,0.610438]
[1718086852605,1.29550538,67819.0,67818.0,0.610438]
[1718086852815,1.28550538,67819.0,67818.0,0.610438]
[1718086853052,1.29550538,67819.0,67818.0,0.609438]
[1718086853303,1.28150538,67819.0,67818.0,0.609438]
[1718086853909,1.29550538,67819.0,67818.0,0.609438]
[1718086854115,1.28150538,67819.0,67818.0,0.609438]
[1718086854573,1.30950538,67819.0,67818.0,0.610438]
[1718086854776,0.86670538,67819.0,67818.0,0.610438]
[1718086854987,0.92880538,67819.0,67818.0,0.609438]
[1718086855192,0.91480538,67819.0,67818.0,0.609438]
[1718086855399,0.91480538,67819.0,67818.0,0.610438]
[1718086855400,0.82970538,67819.0,67818.0,0.610438]
[1718086855615,0.84370538,67819.0,67818.0,0.610438]
[1718086856027,0.91480538,67819.0,67818.0,0.609438]
[1718086856233,0.91480538,67819.0,67818.0,0.610438]
[1718086856448,0.92880538,67819.0,67818.0,0.610438]
[1718086856889,0.93880538,67819.0,67818.0,0.610438]
[1718086857097,0.92480538,67819.0,67818.0,0.610438]
[1718086857513,0.93880538,67819.0,67818.0,0.610438]
[1718086858153,0.93880538,67819.0,67818.0,0.310438]
[1718086858849,0.92880538,67819.0,67818.0,0.310438]
[1718086859230,0.93880538,67819.0,67818.0,0.310438]
[1718086859896,0.93880538,67819.0,67818.0,0.311298]
[1718086860099,1.03880538,67819.0,67818.0,0.311298]
[1718086860311,1.35050738,67819.0,67818.0,0.311298]
[1718086860525,1.43560738,67819.0,67818.0,0.311298]
[1718086860970,1.40230538,67819.0,67818.0,0.311298]
[1718086861177,1.89720738,67819.0,67818.0,0.311298]
[1718086861418,1.89720738,67819.0,67794.0,0.00858]
[1718086861419,0.14749,67801.0,67794.0,0.00858]
[1718086861635,1.46230993,67801.0,67794.0,0.00858]
[1718086861843,1.11518117,67801.0,67794.0,0.00858]
[1718086862058,0.49518117,67801.0,67797.0,0.1563]
[1718086862291,0.34769117,67801.0,67797.0,0.1563]
[1718086862494,0.36769117,67801.0,67797.0,0.1563]
[1718086863153,0.36769117,67801.0,67794.0,0.08508]
[1718086863646,0.36869117,67801.0,67794.0,0.08508]
[1718086863851,0.39169117,67801.0,67794.0,0.00858]
[1718086864288,0.36769117,67801.0,67794.0,0.00858]
[1718086864491,0.35169117,67801.0,67794.0,0.00858]
[1718086864708,0.37169117,67801.0,67794.0,0.00858]
[1718086864960,0.36769117,67801.0,67794.0,0.00858]
[1718086865604,0.37669117,67801.0,67794.0,0.00858]
[1718086866276,0.35669117,67801.0,67794.0,0.00858]
[1718086866489,0.35669117,67801.0,67800.0,0.23604934]
[1718086866695,0.35669117,67801.0,67800.0,0.25965427]
[1718086867769,0.00337124,67801.0,67800.0,0.25965427]
[1718086868199,0.004,67801.0,67800.0,0.25965427]
[1718086868408,0.004,67801.0,67800.0,0.61264261]
[1718086868665,0.004,67801.0,67800.0,0.41264261]
[1718086868907,0.4718,67813.0,67800.0,0.41264261]
[1718086869130,0.2,67804.0,67801.0,0.1942526]
[1718086869338,0.34431993,67804.0,67802.0,0.15298938]
[1718086869544,0.02,67801.0,67800.0,0.16084934]
[1718086869972,0.001,67801.0,67800.0,0.16084934]
[1718086870604,0.29180793,67803.0,67800.0,0.16084934]
[1718086870815,0.29180793,67803.0,67800.0,0.18544427]
[1718086871890,0.29180793,67803.0,67801.0,0.15299498]
[1718086872094,0.29180793,67803.0,67800.0,0.18544427]
[1718086872309,0.14431993,67803.0,67801.0,0.1529944]
[1718086872523,0.14431993,67803.0,67802.0,0.1529944]
[1718086872770,0.14431993,67803.0,67802.0,0.18683827]
[1718086875971,0.14531993,67803.0,67802.0,0.18683827]
[1718086876426,0.14431993,67803.0,67802.0,0.18683827]
[1718086876836,0.14431993,67803.0,67802.0,0.18683831]
[1718086877703,0.2,67804.0,67802.0,0.18683832]
[1718086877900,0.34431993,67804.0,67803.0,0.27523271]
[1718086879141,0.34531993,67804.0,67803.0,0.27523271]
[1718086880965,0.34431993,67804.0,67803.0,0.27523271]
[1718086881378,0.34731993,67804.0,67803.0,0.27523271]
[1718086881586,0.34431993,67804.0,67803.0,0.27523271]
[1718086882015,0.34531993,67804.0,67803.0,0.27523271]
[1718086882230,0.34531993,67804.0,67803.0,0.22949445]
[1718086882455,0.34967558,67804.0,67803.0,0.22949445]
[1718086882653,0.00535565,67804.0,67803.0,0.46599445]
[1718086883001,0.001,67804.0,67803.0,0.46599445]
[1718086883207,0.001,67804.0,67803.0,0.55015772]
[1718086884252,0.2,67811.0,67803.0,0.55015772]
[1718086884484,0.2,67811.0,67806.0,0.0851]
[1718086884698,0.14869224,67810.0,67807.0,0.15299445]
[1718086884909,0.16869224,67810.0,67803.0,0.31206327]
[1718086885119,0.14869224,67810.0,67804.0,0.15298727]
[1718086885342,0.14869224,67810.0,67805.0,0.15298727]
[1718086885575,0.14869224,67810.0,67806.0,0.15298727]
[1718086885774,0.14869224,67810.0,67807.0,0.15298727]
[1718086885983,0.00437231,67810.0,67809.0,0.2257]
[1718086886192,0.04900693,67814.0,67809.0,0.2257]
[1718086886396,0.147457,67817.0,67809.0,0.2257]
[1718086886599,0.00438242,67813.0,67809.0,0.2257]
[1718086887032,0.14431993,67816.0,67810.0,0.23807979]
[1718086887240,0.14431993,67816.0,67811.0,0.20401764]
[1718086887241,0.0043883,67812.0,67811.0,0.20401764]
[1718086887448,0.14431993,67816.0,67811.0,0.20401764]
[1718086887653,0.0043883,67812.0,67811.0,0.05103785]
[1718086887859,0.14431993,67816.0,67811.0,0.20400931]
[1718086888078,0.0043883,67812.0,67811.0,0.05103785]
[1718086888287,0.07215996,67815.0,67811.0,0.2040093]
[1718086888497,0.07215996,67815.0,67810.0,0.0851]
[1718086888498,0.0043883,67812.0,67809.0,0.2257]
[1718086888697,0.07215996,67815.0,67809.0,0.2257]
[1718086888943,0.00439372,67811.0,67810.0,0.15297155]
[1718086889152,0.16431993,67816.0,67810.0,0.15297155]
[1718086889362,0.00439372,67811.0,67810.0,0.15297155]
[1718086889538,0.02,67815.0,67810.0,0.19934871]
[1718086889791,0.02,67815.0,67810.0,0.04637716]
[1718086890005,0.0243954,67814.0,67810.0,0.04637716]
[1718086890206,0.0043954,67814.0,67810.0,0.04637716]
[1718086890629,0.14431993,67816.0,67810.0,0.04637716]
[1718086890837,0.00439263,67813.0,67811.0,0.03571772]
[1718086891248,0.14431993,67816.0,67811.0,0.03571772]
[1718086891450,0.00439207,67812.0,67811.0,0.03571772]
[1718086891657,0.34431993,67812.0,67811.0,0.03571772]
[1718086891870,0.348712,67812.0,67811.0,0.03571772]
[1718086892084,0.348712,67812.0,67809.0,0.1505]
[1718086892521,0.02,67808.0,67804.0,0.1604]
[1718086892760,0.02,67806.0,67805.0,0.15297579]
[1718086892991,0.02,67806.0,67804.0,0.1604]
[1718086893216,0.02439851,67806.0,67805.0,0.02436493]
[1718086894527,0.02439851,67806.0,67804.0,0.1604]
[1718086894528,0.2,67805.0,67800.0,0.24914934]
[1718086894742,0.2,67805.0,67801.0,0.15299038]
[1718086894963,0.2,67805.0,67800.0,0.24914934]
[1718086894964,0.2,67805.0,67800.0,0.16944934]
[1718086895184,0.00439739,67804.0,67801.0,0.15299054]
[1718086895394,0.00439739,67804.0,67800.0,0.16944934]
[1718086895595,0.00439739,67804.0,67801.0,0.15299057]
[1718086895802,0.00439739,67804.0,67801.0,0.04045399]
[1718086896581,0.00439739,67804.0,67802.0,0.15299058]
[1718086896800,0.00539739,67804.0,67801.0,0.04045399]
[1718086897004,0.00539739,67804.0,67802.0,0.15299058]
[1718086897215,0.00539739,67804.0,67801.0,0.04045399]
[1718086897514,0.00539739,67804.0,67802.0,0.15299058]
[1718086897781,0.00539739,67804.0,67801.0,0.04045399]
[1718086897941,0.00539739,67804.0,67802.0,0.15299166]
[1718086898159,0.00539739,67804.0,67801.0,0.04045399]
[1718086898321,0.00439739,67804.0,67802.0,0.15299167]
[1718086898517,0.00439739,67804.0,67801.0,0.04045399]
[1718086898838,0.00539739,67804.0,67802.0,0.15299166]
[1718086899049,0.14971732,67804.0,67801.0,0.04045399]
[1718086899255,0.14971732,67804.0,67802.0,0.15299173]
[1718086899457,0.14871732,67804.0,67800.0,0.16944934]
[1718086899706,0.14871732,67804.0,67801.0,0.15299253]
[1718086899820,0.14971732,67804.0,67800.0,0.19460427]
[1718086900032,0.14971732,67804.0,67801.0,0.15299254]
[1718086900232,0.14971732,67804.0,67800.0,0.19460427]
[1718086900233,0.14871732,67804.0,67800.0,0.19460427]
[1718086900430,0.14871732,67804.0,67801.0,0.18066297]
[1718086900681,0.14871732,67804.0,67801.0,0.02767043]
[1718086900861,0.16871732,67804.0,67801.0,0.02767043]
[1718086901066,0.02,67802.0,67801.0,0.02767043]
[1718086901549,0.02439589,67802.0,67801.0,0.02767043]
[1718086902803,0.16871582,67802.0,67801.0,0.02767043]
[1718086903222,0.16871582,67802.0,67800.0,0.00354934]
[1718086903223,0.02,67801.0,67800.0,0.00354934]
[1718086903441,0.14431993,67801.0,67800.0,0.00354934]
[1718086903667,0.16871526,67801.0,67800.0,0.00354934]
[1718086903900,0.16871526,67801.0,67779.0,0.1649]
[1718086903901,0.849947,67775.0,67773.0,0.02213098]
[1718086904120,0.849947,67775.0,67769.0,0.00858]
[1718086904121,2.51785092,67775.0,67769.0,0.00858]
[1718086904350,0.02,67751.0,67750.0,0.00858]
[1718086904651,0.25807506,67751.0,67750.0,0.00858]
[1718086904846,0.27425008,67751.0,67750.0,0.00858]
[1718086905070,0.29425008,67751.0,67750.0,0.00858]
[1718086905278,0.36641004,67751.0,67750.0,0.00858]
[1718086905486,0.29679709,67751.0,67750.0,0.00858]
[1718086905933,0.27679709,67751.0,67750.0,0.00858]
[1718086906141,0.13647716,67751.0,67750.0,0.00858]
[1718086906358,0.13647716,67751.0,67750.0,0.178388]
[1718086906587,0.03749853,67751.0,67750.0,0.178388]
[1718086906797,0.01536731,67751.0,67750.0,0.178388]
[1718086907004,0.011,67751.0,67750.0,0.178388]
[1718086907422,0.007,67751.0,67750.0,0.178388]
[1718086907853,0.02,67751.0,67750.0,0.178388]
[1718086908069,0.013,67751.0,67750.0,0.178388]
[1718086908267,0.01889677,67751.0,67750.0,0.178388]
[1718086908445,0.01989677,67751.0,67750.0,0.178388]
[1718086908673,0.00589677,67751.0,67750.0,0.178388]
[1718086908910,0.00389677,67751.0,67750.0,0.178388]
[1718086909194,0.00489677,67751.0,67750.0,0.178388]
[1718086910803,0.3823167,67751.0,67750.0,0.00858]
[1718086911121,0.45447666,67751.0,67750.0,0.00858]
[1718086911324,0.60759659,67751.0,67750.0,0.00858]
[1718086911576,0.60659659,67751.0,67750.0,0.00858]
[1718086912043,0.367631,67736.0,67735.0,0.00858]
[1718086912303,1.14871089,67736.0,67735.0,0.00858]
[1718086912562,1.40579659,67736.0,67735.0,0.00858]
[1718086912816,1.41879659,67736.0,67735.0,0.00858]
[1718086913269,1.59118922,67736.0,67735.0,0.00858]
[1718086913486,1.37808922,67736.0,67735.0,0.00858]
[1718086913708,1.59118922,67736.0,67735.0,0.00858]
[1718086914129,1.37808922,67736.0,67735.0,0.00858]
[1718086914346,1.39208922,67736.0,67735.0,0.00858]
[1718086914562,1.21748922,67736.0,67735.0,0.00858]
[1718086914997,1.24548922,67736.0,67735.0,0.00858]
[1718086915410,1.23148922,67736.0,67735.0,0.00858]
[1718086915850,1.25406922,67736.0,67735.0,0.00858]
[1718086916488,1.24006922,67736.0,67735.0,0.00858]
[1718086917167,1.22606922,67736.0,67735.0,0.00858]
[1718086917440,1.25406922,67736.0,67735.0,0.00858]
[1718086918106,1.1108752,67736.0,67735.0,0.00858]
[1718086918328,1.26405465,67736.0,67735.0,0.00858]
[1718086918547,1.25405465,67736.0,67735.0,0.00858]
[1718086918785,0.85799469,67736.0,67735.0,0.00858]
[1718086919001,0.33270213,67736.0,67735.0,0.00858]
[1718086919222,0.53270213,67736.0,67735.0,0.048802]
[1718086919657,0.37952268,67736.0,67735.0,0.00858]
[1718086919876,0.36552268,67736.0,67735.0,0.00858]
[1718086920111,0.35152268,67736.0,67735.0,0.00858]
[1718086920328,0.36552268,67736.0,67735.0,0.00858]
[1718086920505,0.37952268,67736.0,67735.0,0.027492]
[1718086921624,0.03189168,67736.0,67735.0,0.027492]
[1718086921840,0.01789168,67736.0,67735.0,0.027492]
[1718086922069,0.018,67736.0,67735.0,0.110092]
[1718086922297,0.36331993,67736.0,67735.0,0.09118]
[1718086922535,0.36713899,67736.0,67735.0,0.00858]
[1718086922757,0.45929895,67736.0,67735.0,0.00858]
[1718086922983,0.45829895,67736.0,67735.0,0.00858]
[1718086923198,0.61245236,67736.0,67735.0,0.01058]
[1718086923407,0.59445236,67736.0,67735.0,0.01058]
[1718086923844,0.59745236,67736.0,67735.0,0.00858]
[1718086924055,0.59345236,67736.0,67735.0,0.00858]
[1718086924511,0.59845236,67736.0,67735.0,0.00858]
[1718086925026,0.75308336,67736.0,67735.0,0.00858]
[1718086925193,0.75408336,67736.0,67735.0,0.00858]
[1718086925417,0.74210228,67736.0,67735.0,0.00858]
[1718086925627,0.66994232,67736.0,67735.0,0.00858]
[1718086925842,0.66894232,67736.0,67735.0,0.00858]
[1718086926292,0.65894232,67736.0,67735.0,0.00858]
[1718086926722,0.66194232,67736.0,67735.0,0.00858]
[1718086927186,0.67694232,67736.0,67735.0,0.00858]
[1718086927411,0.68694232,67736.0,67735.0,0.00858]
[1718086928149,0.52262239,67736.0,67735.0,0.00858]
[1718086928594,0.50462239,67736.0,67735.0,0.00858]
[1718086928827,0.16399139,67736.0,67735.0,0.16718]
[1718086929057,0.16399139,67736.0,67735.0,0.186472]
[1718086929058,0.16398111,67736.0,67735.0,0.186472]
[1718086929560,0.00381906,67736.0,67735.0,0.85058589]
[1718086929760,0.01181906,67736.0,67735.0,0.65652593]
[1718086929979,0.008,67736.0,67735.0,0.65652593]
[1718086930266,0.008,67736.0,67735.0,0.85652593]
[1718086930469,0.02,67736.0,67735.0,0.85652593]
[1718086931092,0.008,67736.0,67735.0,0.85652593]
[1718086931555,0.000946,67751.0,67738.0,0.305326]
[1718086931763,0.15310335,67748.0,67743.0,0.2131]
[1718086931970,0.15310335,67747.0,67743.0,0.2131]
[1718086932194,0.15310335,67746.0,67743.0,0.2131]
[1718086932398,0.15310335,67745.0,67743.0,0.2131]
[1718086932609,0.15310335,67745.0,67744.0,0.28980298]
[1718086932823,0.000946,67751.0,67744.0,0.28980298]
[1718086933000,0.15309923,67750.0,67744.0,0.55650298]
[1718086933201,0.000946,67751.0,67747.0,0.147607]
[1718086933202,0.15309923,67749.0,67747.0,0.147607]
[1718086933414,0.000946,67751.0,67750.0,0.2]
[1718086933626,0.15403275,67751.0,67750.0,0.60581993]
[1718086933831,0.15403275,67751.0,67750.0,0.68201993]
[1718086934044,0.001946,67751.0,67750.0,0.68201993]
[1718086934698,0.000946,67751.0,67750.0,0.68201993]
[1718086934867,0.001946,67751.0,67750.0,0.94545252]
[1718086935894,0.001946,67751.0,67750.0,0.94745252]
[1718086936115,0.3193376,67751.0,67750.0,0.005]
[1718086936333,0.3193376,67751.0,67750.0,0.002]
[1718086936334,0.3183376,67751.0,67750.0,0.002]
[1718086936594,0.62458295,67751.0,67750.0,0.002]
[1718086936800,0.83184517,67751.0,67750.0,0.004]
[1718086937239,0.2,67744.0,67734.0,0.00858]
[1718086937451,0.17525574,67743.0,67734.0,0.00858]
[1718086937920,0.15312416,67742.0,67734.0,0.00858]
[1718086938155,0.15312416,67741.0,67734.0,0.00858]
[1718086938357,0.02213158,67743.0,67734.0,0.00858]
[1718086938358,0.15312416,67740.0,67734.0,0.00858]
[1718086938487,0.15312416,67739.0,67738.0,0.03456632]
[1718086939082,0.15312416,67739.0,67738.0,0.03756632]
[1718086939722,0.15312416,67739.0,67738.0,0.03956632]
[1718086940262,0.15312416,67739.0,67738.0,0.03456632]
[1718086940467,0.15412416,67739.0,67738.0,0.03656632]
[1718086940678,0.15412416,67739.0,67738.0,0.03956632]
[1718086941082,0.15312416,67739.0,67738.0,0.03456632]
[1718086941425,0.15312416,67739.0,67738.0,0.02324603]
[1718086941621,0.15412416,67739.0,67738.0,0.02524603]
[1718086941820,0.15412416,67739.0,67738.0,0.02224603]
[1718086942020,0.15412416,67739.0,67738.0,0.02524603]
[1718086942455,0.1580625,67739.0,67738.0,0.02524603]
[1718086942897,0.1570625,67739.0,67738.0,0.02324603]
[1718086943315,0.1580625,67739.0,67738.0,0.02524603]
[1718086943548,0.1580625,67739.0,67738.0,0.02224603]
[1718086944012,0.1580625,67739.0,67738.0,0.02424603]
[1718086947815,0.1780625,67739.0,67738.0,0.02424603]
[1718086948058,0.1580625,67739.0,67738.0,0.004]
[1718086948279,0.47000743,67739.0,67738.0,0.004]
[1718086948492,0.77632043,67739.0,67738.0,0.004]
[1718086948709,0.98253016,67739.0,67738.0,0.004]
[1718086949629,1.48253016,67739.0,67738.0,0.004]
[1718086949840,1.48153016,67739.0,67738.0,0.002]
[1718086950047,1.48153016,67739.0,67735.0,0.00858]
[1718086950048,0.367631,67736.0,67735.0,0.00858]
[1718086950286,0.97138809,67736.0,67735.0,0.00858]
[1718086950496,0.9752311,67736.0,67735.0,0.00858]
[1718086951171,0.97527149,67736.0,67735.0,0.00858]
[1718086951623,0.83095156,67736.0,67735.0,0.00858]
[1718086952511,0.83095156,67736.0,67728.0,0.1635]
[1718086952512,0.446464,67721.0,67698.0,0.1635]
[1718086952754,1.05756148,67721.0,67698.0,0.1635]
[1718086952961,1.06138647,67721.0,67698.0,0.1635]
[1718086953164,1.06138647,67721.0,67705.0,0.0814]
[1718086953379,1.06142488,67721.0,67705.0,0.0814]
[1718086954002,1.07242488,67721.0,67720.0,0.0144868]
[1718086954440,1.06142488,67721.0,67720.0,0.0134868]
[1718086954849,1.07542488,67721.0,67720.0,0.0144868]
[1718086955844,1.08442488,67721.0,67720.0,0.0144868]
[1718086956133,1.08442488,67721.0,67720.0,0.0134868]
[1718086956134,1.06142488,67721.0,67720.0,0.0134868]
[1718086956550,1.08942488,67721.0,67720.0,0.0143468]
[1718086956767,1.07542488,67721.0,67720.0,0.0143468]
[1718086957196,1.08942488,67721.0,67720.0,0.0143468]
[1718086957432,1.08354251,67721.0,67720.0,0.0143468]
[1718086957646,0.77722951,67721.0,67720.0,0.0143468]
[1718086957860,0.63802655,67721.0,67720.0,0.0143468]
[1718086958076,0.6830078,67721.0,67720.0,0.0143468]
[1718086958289,0.6970078,67721.0,67720.0,0.0143468]
[1718086958925,0.6630078,67721.0,67720.0,0.0143468]
[1718086959142,0.6690078,67721.0,67720.0,0.0143468]
[1718086959359,0.6490078,67721.0,67720.0,0.0143468]
[1718086959598,0.6770078,67721.0,67720.0,0.0143468]
[1718086959833,1.40876951,67721.0,67720.0,0.0143468]
[1718086960055,1.43975762,67721.0,67720.0,0.0143468]
[1718086960296,1.46775762,67721.0,67720.0,0.0143468]
[1718086960506,1.14732869,67721.0,67720.0,0.0143468]
[1718086960731,1.24732869,67721.0,67720.0,0.0143468]
[1718086962281,1.17516873,67721.0,67720.0,0.0143468]
[1718086962498,0.38502387,67721.0,67720.0,0.0143468]
[1718086962744,1.76464059,67721.0,67720.0,0.0143468]
[1718086962985,2.30278273,67721.0,67720.0,0.0143468]
[1718086963215,2.27478273,67721.0,67720.0,0.0143468]
[1718086963495,2.43644673,67721.0,67720.0,0.0143468]
[1718086963711,2.43645103,67721.0,67720.0,0.0143468]
[1718086963917,2.55945103,67721.0,67720.0,0.0143468]
[1718086964152,2.56845103,67721.0,67720.0,0.0143468]
[1718086964379,2.55545103,67721.0,67720.0,0.0143468]
[1718086964594,2.56945103,67721.0,67720.0,0.0143468]
[1718086964840,2.64254103,67721.0,67720.0,0.0143468]
[1718086965049,2.68554024,67721.0,67720.0,0.0143468]